[Event "Titled Tuesday Blitz May 03 Early 2022"]
[White "D`Arruda, Ricardo D."]
[Black "Coto Mederos, Michel"]
[WhiteFideId "100692"]
[BlackFideId "3508528"]
[WhiteElo "2405"]
[BlackElo "2427"]
[Result "0-1"]
[Round "05"]
[TimeControl "180+1"]
[Date "2022.05.03"]
[WhiteClock "0:00:10"]
[BlackClock "0:00:06"]

1. d4 {[%clk 0:02:54]}  d5 {[%clk 0:02:59]} 2. Nf3 {[%clk 0:02:53]}  Nf6 {[%clk 0:03:00]} 3. g3 {[%clk 0:02:51]}  e6 {[%clk 0:02:54]} 4. Bg2 {[%clk 0:02:51]}  c5 {[%clk 0:02:54]} 5. O-O {[%clk 0:02:50]}  Nc6 {[%clk 0:02:53]} 6. c4 {[%clk 0:02:50]}  Be7 {[%clk 0:02:49]} 7. Nc3 {[%clk 0:02:47]}  O-O {[%clk 0:02:40]} 8. dxc5 {[%clk 0:02:45]}  Bxc5 {[%clk 0:02:39]} 9. cxd5 {[%clk 0:02:45]}  exd5 {[%clk 0:02:40]} 10. b3 {[%clk 0:02:45]}  Re8 {[%clk 0:02:34]} 11. Bb2 {[%clk 0:02:44]}  a6 {[%clk 0:02:24]} 12. Rc1 {[%clk 0:02:43]}  Ba7 {[%clk 0:02:20]} 13. e3 {[%clk 0:02:34]}  Bf5 {[%clk 0:02:03]} 14. Ne2 {[%clk 0:02:30]}  Rc8 {[%clk 0:01:47]} 15. Ned4 {[%clk 0:02:27]}  Be4 {[%clk 0:01:46]} 16. Nxc6 {[%clk 0:02:24]}  bxc6 {[%clk 0:01:43]} 17. Nd4 {[%clk 0:02:17]}  c5 {[%clk 0:01:37]} 18. Ne2 {[%clk 0:02:14]}  Qe7 {[%clk 0:01:06]} 19. Nf4 {[%clk 0:02:08]}  Bxg2 {[%clk 0:00:56]} 20. Kxg2 {[%clk 0:02:07]}  d4 {[%clk 0:00:57]} 21. exd4 {[%clk 0:02:00]}  cxd4 {[%clk 0:00:58]} 22. Qf3 {[%clk 0:01:33]}  Qd7 {[%clk 0:00:27]} 23. Rfd1 {[%clk 0:01:20]}  Ne4 {[%clk 0:00:23]} 24. Nd3 {[%clk 0:01:12]}  Nc3 {[%clk 0:00:19]} 25. Bxc3 {[%clk 0:01:01]}  dxc3 {[%clk 0:00:20]} 26. Ne5 {[%clk 0:00:52]}  Qe6 {[%clk 0:00:19]} 27. Re1 {[%clk 0:00:35]}  h6 {[%clk 0:00:12]} 28. Rxc3 {[%clk 0:00:30]}  Rxc3 {[%clk 0:00:11]} 29. Qxc3 {[%clk 0:00:31]}  f6 {[%clk 0:00:11]} 30. Nf3 {[%clk 0:00:29]}  Qf7 {[%clk 0:00:11]} 31. Qc4 {[%clk 0:00:27]}  Rxe1 {[%clk 0:00:10]} 32. Nxe1 {[%clk 0:00:27]}  Qxc4 {[%clk 0:00:10]} 33. bxc4 {[%clk 0:00:28]}  Kf7 {[%clk 0:00:10]} 34. Nd3 {[%clk 0:00:28]}  Ke6 {[%clk 0:00:11]} 35. Kf3 {[%clk 0:00:28]}  Bd4 {[%clk 0:00:10]} 36. Ke4 {[%clk 0:00:28]}  Ba7 {[%clk 0:00:11]} 37. g4 {[%clk 0:00:28]}  a5 {[%clk 0:00:10]} 38. f4 {[%clk 0:00:28]}  g5 {[%clk 0:00:10]} 39. fxg5 {[%clk 0:00:21]}  hxg5 {[%clk 0:00:11]} 40. Nc1 {[%clk 0:00:20]}  Bb8 {[%clk 0:00:10]} 41. h3 {[%clk 0:00:18]}  a4 {[%clk 0:00:11]} 42. Nd3 {[%clk 0:00:18]}  Bd6 {[%clk 0:00:11]} 43. c5 {[%clk 0:00:18]}  Be7 {[%clk 0:00:11]} 44. Kd4 {[%clk 0:00:17]}  f5 {[%clk 0:00:12]} 45. c6 {[%clk 0:00:16]}  fxg4 {[%clk 0:00:10]} 46. hxg4 {[%clk 0:00:16]}  Kd6 {[%clk 0:00:10]} 47. Ke4 {[%clk 0:00:12]}  Kxc6 {[%clk 0:00:09]} 48. Kf5 {[%clk 0:00:13]}  Kd5 {[%clk 0:00:09]} 49. Ne5 {[%clk 0:00:13]}  a3 {[%clk 0:00:06]} 50. Nf3 {[%clk 0:00:14]}  Kc4 {[%clk 0:00:06]} 51. Nxg5 {[%clk 0:00:14]}  Kc3 {[%clk 0:00:07]} 52. Ne4+ {[%clk 0:00:15]}  Kb2 {[%clk 0:00:07]} 53. Nf6 {[%clk 0:00:15]}  Kxa2 {[%clk 0:00:06]} 54. g5 {[%clk 0:00:16]}  Kb3 {[%clk 0:00:06]} 55. g6 {[%clk 0:00:16]}  Bf8 {[%clk 0:00:07]} 56. Ne4 {[%clk 0:00:10]}  a2 {[%clk 0:00:06]} 57. Nd2+ {[%clk 0:00:10]}  Kc2 {[%clk 0:00:06]} 0-1


[Site "https://www.chess.com"]

[Event "Titled Tuesday Blitz May 03 Early 2022"]
[White "De Souza, Cristiano Gomes"]
[Black "Begunov, Konstantin"]
[WhiteFideId "2151758"]
[BlackFideId "4118510"]
[WhiteElo "2068"]
[BlackElo "2262"]
[Result "0-1"]
[Round "05"]
[TimeControl "180+1"]
[Date "2022.05.03"]
[WhiteClock "0:00:07"]
[BlackClock "0:00:17"]

1. d4 {[%clk 0:02:02]}  d5 {[%clk 0:02:59]} 2. c4 {[%clk 0:02:01]}  c6 {[%clk 0:02:59]} 3. Nf3 {[%clk 0:01:56]}  Nf6 {[%clk 0:02:59]} 4. Nc3 {[%clk 0:01:56]}  dxc4 {[%clk 0:02:59]} 5. a4 {[%clk 0:01:55]}  Bg4 {[%clk 0:03:00]} 6. Ne5 {[%clk 0:01:55]}  Bh5 {[%clk 0:03:00]} 7. Nxc4 {[%clk 0:01:54]}  e6 {[%clk 0:03:00]} 8. f3 {[%clk 0:01:54]}  Na6 {[%clk 0:03:00]} 9. Ne5 {[%clk 0:01:54]}  Nb4 {[%clk 0:02:57]} 10. e4 {[%clk 0:01:50]}  Qxd4 {[%clk 0:02:51]} 11. Qxd4 {[%clk 0:01:48]}  Nc2+ {[%clk 0:02:51]} 12. Kf2 {[%clk 0:01:49]}  Nxd4 {[%clk 0:02:52]} 13. g4 {[%clk 0:01:45]}  Bg6 {[%clk 0:02:51]} 14. h4 {[%clk 0:01:44]}  h6 {[%clk 0:02:18]} 15. Nxg6 {[%clk 0:01:42]}  fxg6 {[%clk 0:02:18]} 16. Bc4 {[%clk 0:01:28]}  Bc5 {[%clk 0:02:11]} 17. Kg2 {[%clk 0:01:28]}  e5 {[%clk 0:02:05]} 18. Be3 {[%clk 0:01:23]}  Ke7 {[%clk 0:02:01]} 19. Rad1 {[%clk 0:01:15]}  Rhd8 {[%clk 0:02:00]} 20. g5 {[%clk 0:01:10]}  hxg5 {[%clk 0:01:48]} 21. hxg5 {[%clk 0:01:10]}  Nh5 {[%clk 0:01:46]} 22. Ne2 {[%clk 0:01:07]}  Ne6 {[%clk 0:01:08]} 23. Bxc5+ {[%clk 0:00:55]}  Nxc5 {[%clk 0:01:09]} 24. a5 {[%clk 0:00:49]}  Ne6 {[%clk 0:01:02]} 25. Kf2 {[%clk 0:00:43]}  Nef4 {[%clk 0:00:51]} 26. Nxf4 {[%clk 0:00:40]}  Nxf4 {[%clk 0:00:50]} 27. Ke3 {[%clk 0:00:26]}  Rxd1 {[%clk 0:00:49]} 28. Rxd1 {[%clk 0:00:25]}  Rh8 {[%clk 0:00:49]} 29. b4 {[%clk 0:00:19]}  Rh5 {[%clk 0:00:45]} 30. b5 {[%clk 0:00:19]}  Rxg5 {[%clk 0:00:43]} 31. bxc6 {[%clk 0:00:19]}  bxc6 {[%clk 0:00:44]} 32. Rb1 {[%clk 0:00:19]}  Kd6 {[%clk 0:00:32]} 33. Rb7 {[%clk 0:00:18]}  Rg2 {[%clk 0:00:28]} 34. Rxa7 {[%clk 0:00:16]}  Rc2 {[%clk 0:00:24]} 35. Ba6 {[%clk 0:00:14]}  Ra2 {[%clk 0:00:22]} 36. Bc4 {[%clk 0:00:12]}  Rc2 {[%clk 0:00:22]} 37. Ba6 {[%clk 0:00:12]}  Kc5 {[%clk 0:00:22]} 38. Rxg7 {[%clk 0:00:10]}  Ra2 {[%clk 0:00:22]} 39. Rc7 {[%clk 0:00:08]}  Rxa5 {[%clk 0:00:21]} 40. Bb7 {[%clk 0:00:08]}  Ra2 {[%clk 0:00:17]} 41. Rxc6+ {[%clk 0:00:07]}  Kb5 {[%clk 0:00:17]} 0-1


[Site "https://www.chess.com"]

[Event "Titled Tuesday Blitz May 03 Early 2022"]
[White "Deac, Bogdan-Daniel"]
[Black "Shyaamnikhil P"]
[WhiteFideId "1226380"]
[BlackFideId "5024218"]
[WhiteElo "2648"]
[BlackElo "2329"]
[Result "1-0"]
[Round "05"]
[TimeControl "180+1"]
[Date "2022.05.03"]
[WhiteClock "0:00:11"]
[BlackClock "0:00:13"]

1. d4 {[%clk 0:02:39]}  Nf6 {[%clk 0:02:58]} 2. Nf3 {[%clk 0:02:38]}  e6 {[%clk 0:02:58]} 3. c4 {[%clk 0:02:39]}  d5 {[%clk 0:02:57]} 4. g3 {[%clk 0:02:39]}  dxc4 {[%clk 0:02:56]} 5. Bg2 {[%clk 0:02:39]}  c5 {[%clk 0:02:56]} 6. O-O {[%clk 0:02:38]}  Nc6 {[%clk 0:02:56]} 7. Qa4 {[%clk 0:02:39]}  Bd7 {[%clk 0:02:51]} 8. Qxc4 {[%clk 0:02:38]}  cxd4 {[%clk 0:02:42]} 9. Nxd4 {[%clk 0:02:37]}  Rc8 {[%clk 0:02:41]} 10. Nc3 {[%clk 0:02:37]}  Na5 {[%clk 0:02:33]} 11. Qd3 {[%clk 0:02:36]}  Qb6 {[%clk 0:02:33]} 12. Rb1 {[%clk 0:02:03]}  Nc4 {[%clk 0:02:14]} 13. Rd1 {[%clk 0:01:51]}  Bb4 {[%clk 0:01:56]} 14. Nc2 {[%clk 0:01:42]}  Bc5 {[%clk 0:01:30]} 15. e3 {[%clk 0:01:29]}  Ne5 {[%clk 0:01:30]} 16. Qe2 {[%clk 0:01:28]}  Be7 {[%clk 0:01:14]} 17. Bd2 {[%clk 0:01:12]}  O-O {[%clk 0:01:05]} 18. b3 {[%clk 0:01:11]}  Bc6 {[%clk 0:00:54]} 19. e4 {[%clk 0:01:06]}  Nfg4 {[%clk 0:00:49]} 20. h3 {[%clk 0:00:59]}  Nf6 {[%clk 0:00:31]} 21. Be3 {[%clk 0:00:54]}  Qc7 {[%clk 0:00:27]} 22. Nd4 {[%clk 0:00:51]}  Bb4 {[%clk 0:00:20]} 23. Ncb5 {[%clk 0:00:45]}  Qb8 {[%clk 0:00:18]} 24. f4 {[%clk 0:00:29]}  Bxb5 {[%clk 0:00:14]} 25. Nxb5 {[%clk 0:00:21]}  Nc6 {[%clk 0:00:14]} 26. e5 {[%clk 0:00:21]}  Nd5 {[%clk 0:00:13]} 27. Bxd5 {[%clk 0:00:21]}  exd5 {[%clk 0:00:14]} 28. Rxd5 {[%clk 0:00:22]}  Rfd8 {[%clk 0:00:13]} 29. Rbd1 {[%clk 0:00:21]}  a6 {[%clk 0:00:13]} 30. Nd6 {[%clk 0:00:21]}  Rc7 {[%clk 0:00:12]} 31. Bb6 {[%clk 0:00:15]}  Rcd7 {[%clk 0:00:12]} 32. Bxd8 {[%clk 0:00:14]}  Qxd8 {[%clk 0:00:13]} 33. Kg2 {[%clk 0:00:13]}  Ne7 {[%clk 0:00:13]} 34. Nxb7 {[%clk 0:00:11]} 1-0


[Site "https://www.chess.com"]

[Event "Titled Tuesday Blitz May 03 Early 2022"]
[White "Demchenko, Anton"]
[Black "Nagy, Gabor"]
[WhiteFideId "4160258"]
[BlackFideId "737119"]
[WhiteElo "2539"]
[BlackElo "2534"]
[Result "1-0"]
[Round "05"]
[TimeControl "180+1"]
[Date "2022.05.03"]
[WhiteClock "0:00:29"]
[BlackClock "0:01:12"]

1. e4 {[%clk 0:03:00]}  c5 {[%clk 0:03:00]} 2. Nf3 {[%clk 0:03:00]}  d6 {[%clk 0:03:00]} 3. d4 {[%clk 0:03:00]}  cxd4 {[%clk 0:03:01]} 4. Qxd4 {[%clk 0:03:01]}  Nf6 {[%clk 0:03:02]} 5. Nc3 {[%clk 0:03:00]}  a6 {[%clk 0:03:00]} 6. Bg5 {[%clk 0:02:50]}  Nc6 {[%clk 0:02:59]} 7. Qd2 {[%clk 0:02:51]}  e6 {[%clk 0:02:57]} 8. O-O-O {[%clk 0:02:52]}  Bd7 {[%clk 0:02:57]} 9. Nd4 {[%clk 0:02:51]}  Be7 {[%clk 0:02:55]} 10. f3 {[%clk 0:02:49]}  b5 {[%clk 0:02:52]} 11. Nxc6 {[%clk 0:02:48]}  Bxc6 {[%clk 0:02:53]} 12. Ne2 {[%clk 0:02:47]}  Nxe4 {[%clk 0:02:35]} 13. Bxe7 {[%clk 0:02:46]}  Nxd2 {[%clk 0:02:35]} 14. Bxd8 {[%clk 0:02:46]}  Nxf1 {[%clk 0:02:35]} 15. Bb6 {[%clk 0:02:43]}  Rb8 {[%clk 0:02:19]} 16. Bf2 {[%clk 0:02:40]}  Nxh2 {[%clk 0:02:12]} 17. Rxh2 {[%clk 0:02:40]}  Ke7 {[%clk 0:02:12]} 18. Bg3 {[%clk 0:02:28]}  Rbd8 {[%clk 0:02:10]} 19. Be1 {[%clk 0:02:27]}  f6 {[%clk 0:02:03]} 20. Bb4 {[%clk 0:02:27]}  e5 {[%clk 0:02:03]} 21. Rhh1 {[%clk 0:02:06]}  Ke6 {[%clk 0:02:01]} 22. Rhe1 {[%clk 0:02:06]}  Ba8 {[%clk 0:01:47]} 23. Nd4+ {[%clk 0:02:05]}  Kf7 {[%clk 0:01:47]} 24. Nf5 {[%clk 0:01:59]}  d5 {[%clk 0:01:43]} 25. f4 {[%clk 0:01:17]}  e4 {[%clk 0:01:43]} 26. Ba5 {[%clk 0:01:02]}  Rb8 {[%clk 0:01:36]} 27. Bc7 {[%clk 0:00:58]}  Rbf8 {[%clk 0:01:34]} 28. Bb6 {[%clk 0:00:53]}  g6 {[%clk 0:01:32]} 29. Ne3 {[%clk 0:00:49]}  f5 {[%clk 0:01:26]} 30. Nxd5 {[%clk 0:00:48]}  Rb8 {[%clk 0:01:20]} 31. Bf2 {[%clk 0:00:44]}  Rhd8 {[%clk 0:01:15]} 32. Ne3 {[%clk 0:00:45]}  Bc6 {[%clk 0:01:15]} 33. Rxd8 {[%clk 0:00:44]}  Rxd8 {[%clk 0:01:15]} 34. Rd1 {[%clk 0:00:45]}  Rg8 {[%clk 0:01:16]} 35. Rd6 {[%clk 0:00:43]}  Be8 {[%clk 0:01:16]} 36. Rxa6 {[%clk 0:00:38]}  g5 {[%clk 0:01:14]} 37. Bg3 {[%clk 0:00:33]}  h5 {[%clk 0:01:12]} 38. fxg5 {[%clk 0:00:31]}  Rxg5 {[%clk 0:01:10]} 39. Bf4 {[%clk 0:00:32]}  Rg6 {[%clk 0:01:11]} 40. Rxg6 {[%clk 0:00:30]}  Kxg6 {[%clk 0:01:12]} 41. b3 {[%clk 0:00:29]} 1-0


[Site "https://www.chess.com"]

[Event "Titled Tuesday Blitz May 03 Early 2022"]
[White "Dilmukhametov, Artur"]
[Black "Broca Jimenez, Fernando"]
[WhiteFideId "24179922"]
[BlackFideId "5104742"]
[WhiteElo "2244"]
[BlackElo "2062"]
[Result "0-1"]
[Round "05"]
[TimeControl "180+1"]
[Date "2022.05.03"]
[WhiteClock "0:01:46"]
[BlackClock "0:01:22"]

1. d4 {[%clk 0:02:58]}  Nf6 {[%clk 0:02:58]} 2. Nc3 {[%clk 0:02:55]}  c5 {[%clk 0:02:56]} 3. dxc5 {[%clk 0:02:54]}  e6 {[%clk 0:02:55]} 4. Nf3 {[%clk 0:02:53]}  Bxc5 {[%clk 0:02:55]} 5. e4 {[%clk 0:02:51]}  Ng4 {[%clk 0:02:10]} 6. Nd4 {[%clk 0:02:38]}  Qb6 {[%clk 0:02:09]} 7. Nce2 {[%clk 0:02:28]}  Nxf2 {[%clk 0:02:07]} 8. Kxf2 {[%clk 0:02:27]}  Nc6 {[%clk 0:02:07]} 9. c3 {[%clk 0:02:21]}  e5 {[%clk 0:02:07]} 10. b3 {[%clk 0:02:14]}  exd4 {[%clk 0:02:05]} 11. cxd4 {[%clk 0:02:14]}  Nxd4 {[%clk 0:02:04]} 12. Nxd4 {[%clk 0:02:12]}  Bxd4+ {[%clk 0:02:04]} 13. Ke1 {[%clk 0:02:08]}  Bxa1 {[%clk 0:02:03]} 14. Bc4 {[%clk 0:02:04]}  Bf6 {[%clk 0:01:33]} 15. Rf1 {[%clk 0:01:58]}  d6 {[%clk 0:01:31]} 16. Bf4 {[%clk 0:01:55]}  Be6 {[%clk 0:01:23]} 17. Bxe6 {[%clk 0:01:49]}  fxe6 {[%clk 0:01:22]} 18. Bxd6 {[%clk 0:01:46]}  Rd8 {[%clk 0:01:22]} 0-1


[Site "https://www.chess.com"]

[Event "Titled Tuesday Blitz May 03 Early 2022"]
[White "Donchenko, Alexander"]
[Black "Zhu, Jiner"]
[WhiteFideId "24603295"]
[BlackFideId "8608059"]
[WhiteElo "2539"]
[BlackElo "2281"]
[Result "1-0"]
[Round "05"]
[TimeControl "180+1"]
[Date "2022.05.03"]
[WhiteClock "0:00:42"]
[BlackClock "0:00:18"]

1. d4 {[%clk 0:02:55]}  Nf6 {[%clk 0:02:59]} 2. Nf3 {[%clk 0:02:55]}  e6 {[%clk 0:02:57]} 3. c4 {[%clk 0:02:55]}  d5 {[%clk 0:02:57]} 4. g3 {[%clk 0:02:55]}  Bb4+ {[%clk 0:02:49]} 5. Bd2 {[%clk 0:02:54]}  Be7 {[%clk 0:02:50]} 6. Bg2 {[%clk 0:02:55]}  O-O {[%clk 0:02:51]} 7. O-O {[%clk 0:02:55]}  c6 {[%clk 0:02:50]} 8. Qc2 {[%clk 0:02:56]}  b6 {[%clk 0:02:49]} 9. Rd1 {[%clk 0:02:54]}  Nbd7 {[%clk 0:02:49]} 10. Bf4 {[%clk 0:02:54]}  Ba6 {[%clk 0:02:47]} 11. cxd5 {[%clk 0:02:54]}  cxd5 {[%clk 0:02:45]} 12. Ne5 {[%clk 0:02:54]}  Bb7 {[%clk 0:01:56]} 13. Nc6 {[%clk 0:02:49]}  Bxc6 {[%clk 0:01:56]} 14. Qxc6 {[%clk 0:02:50]}  Qc8 {[%clk 0:01:55]} 15. Qa4 {[%clk 0:02:46]}  Qb7 {[%clk 0:01:50]} 16. Nc3 {[%clk 0:02:45]}  a6 {[%clk 0:01:47]} 17. Qb3 {[%clk 0:02:41]}  b5 {[%clk 0:01:43]} 18. Rac1 {[%clk 0:02:38]}  Rfc8 {[%clk 0:01:44]} 19. a4 {[%clk 0:02:31]}  b4 {[%clk 0:01:42]} 20. Nb1 {[%clk 0:02:31]}  a5 {[%clk 0:01:28]} 21. Qd3 {[%clk 0:02:26]}  Rxc1 {[%clk 0:01:14]} 22. Rxc1 {[%clk 0:02:26]}  Rc8 {[%clk 0:01:14]} 23. b3 {[%clk 0:02:03]}  h6 {[%clk 0:01:11]} 24. Rc2 {[%clk 0:02:01]}  Rc6 {[%clk 0:01:04]} 25. Nd2 {[%clk 0:01:57]}  Qc8 {[%clk 0:01:03]} 26. Rxc6 {[%clk 0:01:56]}  Qxc6 {[%clk 0:01:04]} 27. Nf3 {[%clk 0:01:55]}  Bd6 {[%clk 0:01:01]} 28. Bd2 {[%clk 0:01:32]}  Ne4 {[%clk 0:01:00]} 29. Ne1 {[%clk 0:01:30]}  Nxd2 {[%clk 0:00:55]} 30. Qxd2 {[%clk 0:01:31]}  Qc3 {[%clk 0:00:53]} 31. Qxc3 {[%clk 0:01:27]}  bxc3 {[%clk 0:00:54]} 32. e3 {[%clk 0:01:24]}  Nb8 {[%clk 0:00:51]} 33. Kf1 {[%clk 0:01:12]}  Nc6 {[%clk 0:00:50]} 34. Ke2 {[%clk 0:01:11]}  Nb4 {[%clk 0:00:50]} 35. Kd1 {[%clk 0:01:11]}  Kf8 {[%clk 0:00:49]} 36. Bf1 {[%clk 0:01:09]}  Ke7 {[%clk 0:00:46]} 37. Nf3 {[%clk 0:01:02]}  f6 {[%clk 0:00:45]} 38. Ng1 {[%clk 0:00:59]}  e5 {[%clk 0:00:37]} 39. Bb5 {[%clk 0:00:59]}  e4 {[%clk 0:00:31]} 40. Ne2 {[%clk 0:00:58]}  c2+ {[%clk 0:00:31]} 41. Kd2 {[%clk 0:00:58]}  Nd3 {[%clk 0:00:27]} 42. Bxd3 {[%clk 0:00:54]}  exd3 {[%clk 0:00:26]} 43. Kxd3 {[%clk 0:00:53]}  Bb4 {[%clk 0:00:25]} 44. Kxc2 {[%clk 0:00:51]}  Be1 {[%clk 0:00:25]} 45. f3 {[%clk 0:00:51]}  Bf2 {[%clk 0:00:25]} 46. Kd3 {[%clk 0:00:51]}  Be1 {[%clk 0:00:22]} 47. g4 {[%clk 0:00:51]}  g5 {[%clk 0:00:22]} 48. e4 {[%clk 0:00:49]}  dxe4+ {[%clk 0:00:21]} 49. fxe4 {[%clk 0:00:46]}  Ke6 {[%clk 0:00:22]} 50. h3 {[%clk 0:00:45]}  Bb4 {[%clk 0:00:21]} 51. Kc4 {[%clk 0:00:46]}  Be1 {[%clk 0:00:21]} 52. Nc1 {[%clk 0:00:45]}  Kd6 {[%clk 0:00:21]} 53. Nd3 {[%clk 0:00:46]}  Bd2 {[%clk 0:00:21]} 54. Kb5 {[%clk 0:00:45]}  Bc3 {[%clk 0:00:20]} 55. d5 {[%clk 0:00:45]}  Bd2 {[%clk 0:00:20]} 56. b4 {[%clk 0:00:41]}  axb4 {[%clk 0:00:20]} 57. Nxb4 {[%clk 0:00:42]}  Ke5 {[%clk 0:00:20]} 58. a5 {[%clk 0:00:42]}  Be3 {[%clk 0:00:18]} 59. a6 {[%clk 0:00:42]} 1-0


[Site "https://www.chess.com"]

[Event "Titled Tuesday Blitz May 03 Early 2022"]
[White "Wagner, Dinara"]
[Black "Lashkin, Jegor"]
[WhiteFideId "24157570"]
[BlackFideId "13907808"]
[WhiteElo "2521"]
[BlackElo "2790"]
[Result "0-1"]
[Round "05"]
[TimeControl "180+1"]
[Date "2022.05.03"]
[WhiteClock "0:00:02"]
[BlackClock "0:00:10"]

1. d4 {[%clk 0:02:57]}  Nf6 {[%clk 0:02:59]} 2. c4 {[%clk 0:02:57]}  e6 {[%clk 0:02:58]} 3. Nf3 {[%clk 0:02:57]}  d5 {[%clk 0:02:58]} 4. g3 {[%clk 0:02:58]}  dxc4 {[%clk 0:02:56]} 5. Bg2 {[%clk 0:02:58]}  a6 {[%clk 0:02:56]} 6. O-O {[%clk 0:02:58]}  Nc6 {[%clk 0:02:56]} 7. e3 {[%clk 0:02:57]}  Rb8 {[%clk 0:02:55]} 8. a4 {[%clk 0:02:44]}  Be7 {[%clk 0:02:47]} 9. a5 {[%clk 0:02:44]}  Bb4 {[%clk 0:02:38]} 10. Nfd2 {[%clk 0:02:34]}  Nxa5 {[%clk 0:02:15]} 11. Qa4+ {[%clk 0:02:30]}  Nc6 {[%clk 0:02:15]} 12. Bxc6+ {[%clk 0:02:23]}  bxc6 {[%clk 0:02:15]} 13. Qxc6+ {[%clk 0:02:23]}  Bd7 {[%clk 0:02:12]} 14. Qg2 {[%clk 0:02:02]}  Bb5 {[%clk 0:02:05]} 15. Nc3 {[%clk 0:01:51]}  O-O {[%clk 0:02:04]} 16. Nxb5 {[%clk 0:01:31]}  axb5 {[%clk 0:02:05]} 17. b3 {[%clk 0:01:32]}  Qd5 {[%clk 0:01:56]} 18. bxc4 {[%clk 0:01:27]}  bxc4 {[%clk 0:01:57]} 19. Nf3 {[%clk 0:01:06]}  c5 {[%clk 0:01:52]} 20. Rd1 {[%clk 0:00:58]}  Rfd8 {[%clk 0:01:46]} 21. Ba3 {[%clk 0:00:53]}  c3 {[%clk 0:01:40]} 22. Ne1 {[%clk 0:00:46]}  Ne4 {[%clk 0:01:19]} 23. Nc2 {[%clk 0:00:42]}  Bxa3 {[%clk 0:01:07]} 24. Rxa3 {[%clk 0:00:38]}  Rb2 {[%clk 0:01:07]} 25. Rc1 {[%clk 0:00:28]}  f5 {[%clk 0:00:37]} 26. f3 {[%clk 0:00:27]}  Nd2 {[%clk 0:00:37]} 27. Rxc3 {[%clk 0:00:27]}  Nxf3+ {[%clk 0:00:34]} 28. Kh1 {[%clk 0:00:27]}  cxd4 {[%clk 0:00:33]} 29. exd4 {[%clk 0:00:26]}  Nxd4 {[%clk 0:00:22]} 30. Qxd5 {[%clk 0:00:26]}  Rxd5 {[%clk 0:00:22]} 31. Ne3 {[%clk 0:00:26]}  Nf3 {[%clk 0:00:17]} 32. Rc8+ {[%clk 0:00:24]}  Kf7 {[%clk 0:00:17]} 33. R1c2 {[%clk 0:00:23]}  Rd2 {[%clk 0:00:13]} 34. R8c7+ {[%clk 0:00:10]}  Kg6 {[%clk 0:00:13]} 35. Rxb2 {[%clk 0:00:05]}  Rxb2 {[%clk 0:00:13]} 36. Nf1 {[%clk 0:00:06]}  Rf2 {[%clk 0:00:13]} 37. Rc1 {[%clk 0:00:05]}  Kg5 {[%clk 0:00:12]} 38. Rd1 {[%clk 0:00:06]}  e5 {[%clk 0:00:12]} 39. Rc1 {[%clk 0:00:05]}  e4 {[%clk 0:00:12]} 40. Rd1 {[%clk 0:00:06]}  e3 {[%clk 0:00:12]} 41. h4+ {[%clk 0:00:04]}  Kh5 {[%clk 0:00:11]} 42. Rc1 {[%clk 0:00:02]}  e2 {[%clk 0:00:11]} 43. Rb1 {[%clk 0:00:02]}  exf1=Q+ {[%clk 0:00:10]} 0-1


[Site "https://www.chess.com"]

[Event "Titled Tuesday Blitz May 03 Early 2022"]
[White "Estrada Nieto, Julian"]
[Black "Bashirli, Saadat"]
[WhiteFideId "5101018"]
[BlackFideId "13429990"]
[WhiteElo "2252"]
[BlackElo "1173"]
[Result "0-1"]
[Round "05"]
[TimeControl "180+1"]
[Date "2022.05.03"]
[WhiteClock "0:00:16"]
[BlackClock "0:00:17"]

1. e4 {[%clk 0:03:00]}  c5 {[%clk 0:02:58]} 2. Nf3 {[%clk 0:02:58]}  g6 {[%clk 0:02:57]} 3. d4 {[%clk 0:02:54]}  cxd4 {[%clk 0:02:57]} 4. Qxd4 {[%clk 0:02:54]}  Nf6 {[%clk 0:02:54]} 5. Nc3 {[%clk 0:02:52]}  Nc6 {[%clk 0:02:51]} 6. Qa4 {[%clk 0:02:52]}  d6 {[%clk 0:02:47]} 7. e5 {[%clk 0:02:53]}  dxe5 {[%clk 0:02:43]} 8. Nxe5 {[%clk 0:02:52]}  Bd7 {[%clk 0:02:33]} 9. Nxd7 {[%clk 0:02:51]}  Qxd7 {[%clk 0:02:32]} 10. Be2 {[%clk 0:02:50]}  Bg7 {[%clk 0:02:29]} 11. Be3 {[%clk 0:02:49]}  O-O {[%clk 0:02:28]} 12. Rd1 {[%clk 0:02:50]}  Qf5 {[%clk 0:02:20]} 13. O-O {[%clk 0:02:44]}  Rfd8 {[%clk 0:02:18]} 14. h3 {[%clk 0:02:42]}  h5 {[%clk 0:01:53]} 15. Bd3 {[%clk 0:02:41]}  Qe6 {[%clk 0:01:52]} 16. Qc4 {[%clk 0:02:37]}  Qxc4 {[%clk 0:01:46]} 17. Bxc4 {[%clk 0:02:37]}  Ne5 {[%clk 0:01:40]} 18. Be2 {[%clk 0:02:27]}  a6 {[%clk 0:01:26]} 19. Bb6 {[%clk 0:02:25]}  Rxd1 {[%clk 0:01:24]} 20. Rxd1 {[%clk 0:02:25]}  Rc8 {[%clk 0:01:16]} 21. Rd8+ {[%clk 0:02:22]}  Rxd8 {[%clk 0:01:16]} 22. Bxd8 {[%clk 0:02:23]}  Kf8 {[%clk 0:01:15]} 23. Kf1 {[%clk 0:02:15]}  Ke8 {[%clk 0:01:14]} 24. Bc7 {[%clk 0:02:13]}  Nc6 {[%clk 0:01:09]} 25. Bf3 {[%clk 0:02:10]}  Kd7 {[%clk 0:01:09]} 26. Bb6 {[%clk 0:02:10]}  e5 {[%clk 0:01:03]} 27. Nd5 {[%clk 0:02:00]}  Nxd5 {[%clk 0:01:02]} 28. Bxd5 {[%clk 0:01:58]}  Ke7 {[%clk 0:00:51]} 29. c3 {[%clk 0:01:57]}  f5 {[%clk 0:00:50]} 30. Ke2 {[%clk 0:01:56]}  g5 {[%clk 0:00:47]} 31. Kd3 {[%clk 0:01:54]}  Kd6 {[%clk 0:00:46]} 32. Kc4 {[%clk 0:01:36]}  e4 {[%clk 0:00:36]} 33. Bc5+ {[%clk 0:01:35]}  Kd7 {[%clk 0:00:33]} 34. Bxc6+ {[%clk 0:01:30]}  Kxc6 {[%clk 0:00:31]} 35. Be7 {[%clk 0:01:29]}  g4 {[%clk 0:00:30]} 36. hxg4 {[%clk 0:01:25]}  hxg4 {[%clk 0:00:29]} 37. Bg5 {[%clk 0:01:23]}  b5+ {[%clk 0:00:27]} 38. Kb4 {[%clk 0:01:21]}  Bf8+ {[%clk 0:00:27]} 39. Ka5 {[%clk 0:01:19]}  Kb7 {[%clk 0:00:24]} 40. Be3 {[%clk 0:01:13]}  Bd6 {[%clk 0:00:21]} 41. a4 {[%clk 0:01:10]}  f4 {[%clk 0:00:17]} 42. Bd4 {[%clk 0:01:09]}  bxa4 {[%clk 0:00:16]} 43. Kxa4 {[%clk 0:01:08]}  Kc6 {[%clk 0:00:13]} 44. Ka5 {[%clk 0:01:07]}  Bc5 {[%clk 0:00:12]} 45. Kxa6 {[%clk 0:00:35]}  Bxd4 {[%clk 0:00:11]} 46. cxd4 {[%clk 0:00:36]}  e3 {[%clk 0:00:11]} 47. fxe3 {[%clk 0:00:34]}  fxe3 {[%clk 0:00:11]} 48. b4 {[%clk 0:00:31]}  e2 {[%clk 0:00:11]} 49. b5+ {[%clk 0:00:32]}  Kd5 {[%clk 0:00:11]} 50. b6 {[%clk 0:00:30]}  e1=Q {[%clk 0:00:11]} 51. b7 {[%clk 0:00:24]}  Qa1+ {[%clk 0:00:11]} 52. Kb6 {[%clk 0:00:24]}  Qxd4+ {[%clk 0:00:12]} 53. Kc7 {[%clk 0:00:24]}  Qg7+ {[%clk 0:00:12]} 54. Kc8 {[%clk 0:00:22]}  Qf8+ {[%clk 0:00:12]} 55. Kc7 {[%clk 0:00:22]}  Ke4 {[%clk 0:00:12]} 56. b8=Q {[%clk 0:00:21]}  Qxb8+ {[%clk 0:00:13]} 57. Kxb8 {[%clk 0:00:19]}  Ke3 {[%clk 0:00:14]} 58. Kc7 {[%clk 0:00:19]}  Kf2 {[%clk 0:00:15]} 59. Kd6 {[%clk 0:00:18]}  Kxg2 {[%clk 0:00:15]} 60. Ke5 {[%clk 0:00:19]}  Kf2 {[%clk 0:00:16]} 61. Kf4 {[%clk 0:00:16]}  g3 {[%clk 0:00:17]} 0-1


[Site "https://www.chess.com"]